fUST/lending_fUST_20240902
["ID","MTS","AMOUNT","RATE_DAILY","PERIOD"]
[336873810,1725223848387,-502.05045916,0.00024931,2]
[336873811,1725223848398,-500.0,0.00024931,2]
[336873812,1725223848408,-500.0,0.00024931,2]
[336873813,1725223848418,-577.79,0.00024931,2]
[336873814,1725223848428,-500.0,0.00024931,2]
[336873815,1725223848437,-500.0,0.00024931,2]
[336873816,1725223848447,-500.0,0.00024931,2]
[336873817,1725223848457,-500.0,0.00024931,2]
[336873818,1725223848467,-500.0,0.00024931,2]
[336873819,1725223848477,-1704.72,0.00024931,2]
[336873820,1725223848487,-308.00016193,0.00024931,2]
[336873821,1725223849067,-268.02,0.00024647,3]
[336873822,1725223849080,-500.0,0.00024657,2]
[336873823,1725223849090,-500.0,0.00024657,2]
[336873824,1725223849099,-191.99983807,0.00024931,2]
[336873825,1725223849109,-500.0,0.00024931,2]
[336873826,1725223849119,-896.69,0.00024931,2]
[336873827,1725223849130,-500.0,0.00024931,2]
[336873828,1725223849139,-500.0,0.00024931,2]
[336873829,1725223849149,-500.0,0.00024931,2]
[336873830,1725223849158,-2243.11,0.00024931,2]
[336873831,1725223849168,-500.0,0.00024931,2]
[336873832,1725223849178,-500.0,0.00024931,2]
[336873833,1725223849188,-500.0,0.00024931,2]
[336873834,1725223849197,-500.0,0.00024931,2]
[336873835,1725223849206,-500.0,0.00024931,2]
[336873836,1725223849217,-511.68,0.00024931,2]
[336873837,1725223849227,-500.0,0.00024931,2]
[336873838,1725223849238,-500.0,0.00024931,2]
[336873839,1725223849247,-500.0,0.00024931,2]
[336873840,1725223849256,-500.0,0.00024931,2]
[336873841,1725223849266,-1765.6,0.00024931,2]
[336873842,1725223849276,-500.0,0.00024931,2]
[336873843,1725223849285,-500.0,0.00024931,2]
[336873844,1725223849295,-500.0,0.00024931,2]
[336873845,1725223849308,-500.0,0.00024931,2]
[336873846,1725223849317,-2409.79,0.00024931,2]
[336873847,1725223849327,-569.85,0.00024931,2]
[336873848,1725223849337,-500.0,0.00024931,2]
[336873849,1725223849346,-500.0,0.00024931,2]
[336873850,1725223849356,-1111.63,0.00024931,2]
[336873851,1725223849366,-512.28540056,0.00024931,2]
[336873852,1725223849376,-500.0,0.00024931,2]
[336873853,1725223849385,-1571.19,0.00024931,2]
[336873854,1725223849394,-2169.5,0.00024931,2]
[336873855,1725223849403,-673.2,0.00024931,2]
[336873856,1725223849413,-500.0,0.00024931,2]
[336873857,1725223849422,-966.39,0.00024931,2]
[336873858,1725223849431,-500.0,0.00024931,2]
[336873859,1725223849440,-500.0,0.00024931,2]
[336873860,1725223849449,-740.13,0.00024931,2]
[336873861,1725223849459,-500.0,0.00024931,2]
[336873862,1725223849468,-500.0,0.00024931,2]
[336873863,1725223849477,-500.0,0.00024931,2]
[336873864,1725223849487,-500.0,0.00024931,2]
[336873865,1725223849496,-500.0,0.00024931,2]
[336873866,1725223849506,-500.0,0.00024931,2]
[336873867,1725223849516,-859.36,0.00024931,2]
[336873868,1725223849526,-500.0,0.00024931,2]
[336873869,1725223849536,-535.46,0.00024931,2]
[336873870,1725223849546,-1897.75,0.00024931,2]
[336873871,1725223849556,-1450.88,0.00024931,2]
[336873872,1725223849565,-1045.48,0.00024931,2]
[336873873,1725223849575,-1367.18,0.00024931,2]
[336873874,1725223849584,-500.0,0.00024931,2]
[336873875,1725223849594,-500.0,0.00024931,2]
[336873876,1725223849603,-2148.37,0.00024931,2]
[336873877,1725223849613,-500.0,0.00024931,2]
[336873878,1725223849622,-500.0,0.00024931,2]
[336873879,1725223849631,-502.53,0.00024931,2]
[336873880,1725223849643,-500.0,0.00024931,2]
[336873881,1725223849652,-500.0,0.00024931,2]
[336873882,1725223849662,-500.0,0.00024931,2]
[336873883,1725223849671,-500.0,0.00024931,2]
[336873884,1725223849681,-500.0,0.00024931,2]
[336873885,1725223849691,-585.56,0.00024931,2]
[336873886,1725223849700,-500.0,0.00024931,2]
[336873887,1725223849710,-532.41914003,0.00024931,2]
[336873888,1725223849721,-820.8,0.00024931,2]
[336873889,1725223849731,-500.0,0.00024931,2]
[336873890,1725223849740,-500.0,0.00024931,2]
[336873891,1725223849751,-500.0,0.00024931,2]
[336873892,1725223849762,-500.0,0.00024931,2]
[336873893,1725223849772,-206.64923251,0.00024931,2]
[336873894,1725223849781,-580.39382741,0.00024931,2]
[336873895,1725223849791,-3105.86,0.00024931,2]
[336873896,1725223849800,-16034.01,0.00024931,2]
[336873897,1725223849810,-500.0,0.00024931,2]
[336873898,1725223849819,-500.0,0.00024931,2]
[336873899,1725223849829,-1823.49,0.00024931,2]
[336873900,1725223849838,-500.0,0.00024931,2]
[336873901,1725223849849,-3330.89,0.00024931,2]
[336873902,1725223849859,-702.11,0.00024931,2]
[336873903,1725223849868,-500.0,0.00024931,2]
[336873904,1725223849880,-774.2,0.00024931,2]
[336873905,1725223850037,-500.0,0.00024931,2]
[336873906,1725223850047,-2034.21,0.00024931,2]
[336873907,1725223850057,-500.0,0.00024931,2]
[336873908,1725223850067,-688.01,0.00024931,2]
[336873909,1725223850079,-500.0,0.00024931,2]
[336873910,1725223850089,-500.0,0.00024931,2]
[336873911,1725223850098,-500.0,0.00024931,2]
[336873912,1725223850107,-500.0,0.00024931,2]
[336873913,1725223850117,-500.0,0.00024931,2]
[336873914,1725223850127,-500.0,0.00024931,2]
[336873915,1725223850143,-1630.76,0.00024931,2]
[336873916,1725223850157,-500.0,0.00024931,2]
[336873917,1725223850167,-500.0,0.00024931,2]
[336873918,1725223850178,-500.0,0.00024931,2]
[336873919,1725223850188,-610.36482158,0.00024931,2]
[336873920,1725223850198,-500.0,0.00024931,2]
[336873921,1725223850208,-2401.53,0.00024931,2]
[336873922,1725223850218,-500.0,0.00024931,2]
[336873923,1725223850228,-500.0,0.00024931,2]
[336873924,1725223850238,-3166.18,0.00024931,2]
[336873925,1725223850248,-500.0,0.00024931,2]
[336873926,1725223850257,-500.0,0.00024931,2]
[336873927,1725223850269,-500.0,0.00024931,2]
[336873928,1725223850278,-500.0,0.00024931,2]
[336873929,1725223850288,-500.0,0.00024931,2]
[336873930,1725223850298,-2460.92,0.00024931,2]
[336873931,1725223850308,-739.16,0.00024931,2]
[336873932,1725223850318,-1473.95,0.00024931,2]
[336873933,1725223850328,-530.57,0.00024931,2]
[336873934,1725223850337,-1088.52,0.00024931,2]
[336873935,1725223850347,-500.0,0.00024931,2]
[336873936,1725223850356,-504.07763335,0.00024931,2]
[336873937,1725223850366,-872.59,0.00024931,2]
[336873938,1725223850376,-500.0,0.00024931,2]
[336873939,1725223850388,-500.0,0.00024931,2]
[336873940,1725223850399,-500.0,0.00024931,2]
[336873941,1725223850408,-302.37385269,0.00024931,2]
[336873942,1725223850420,-769.13,0.00024931,2]
[336873943,1725223850430,-875.11,0.00024931,2]
[336873944,1725223850439,-500.0,0.00024931,2]
[336873945,1725223850449,-500.0,0.00024931,2]
[336873946,1725223850459,-500.0,0.00024931,2]
[336873947,1725223850469,-500.0,0.00024931,2]
[336873948,1725223850478,-500.0,0.00024931,2]
[336873949,1725223850488,-500.0,0.00024931,2]
[336873950,1725223850498,-500.0,0.00024931,2]
[336873951,1725223850508,-500.0,0.00024931,2]
[336873952,1725223850518,-758.04,0.00024931,2]
[336873953,1725223850527,-500.0,0.00024931,2]
[336873954,1725223850537,-1729.93,0.00024931,2]
[336873955,1725223850546,-1436.26,0.00024931,2]
[336873956,1725223850555,-500.0,0.00024931,2]
[336873957,1725223850564,-500.0,0.00024931,2]
[336873958,1725223850574,-500.0,0.00024931,2]
[336873959,1725223850583,-500.0,0.00024931,2]
[336873960,1725223850593,-500.0,0.00024931,2]
[336873961,1725223850603,-1599.02,0.00024931,2]
[336873962,1725223850612,-500.0,0.00024931,2]
[336873963,1725223850622,-500.0,0.00024931,2]
[336873964,1725223850631,-500.0,0.00024931,2]
[336873965,1725223850640,-500.0,0.00024931,2]
[336873966,1725223850651,-510.18,0.00024931,2]
[336873967,1725223850660,-500.0,0.00024931,2]
[336873968,1725223850669,-500.0,0.00024931,2]
[336873969,1725223850680,-500.0,0.00024931,2]
[336873970,1725223850689,-500.0,0.00024931,2]
[336873971,1725223850698,-1077.65,0.00024931,2]
[336873972,1725223850709,-1557.02,0.00024931,2]
[336873973,1725223850720,-500.0,0.00024931,2]
[336873974,1725223850730,-1766.48,0.00024931,2]
[336873975,1725223850739,-500.0,0.00024931,2]
[336873976,1725223850750,-500.0,0.00024931,2]
[336873977,1725223850759,-500.0,0.00024931,2]
[336873978,1725223850770,-500.0,0.00024931,2]
[336873979,1725223850781,-500.0,0.00024931,2]
[336873980,1725223850792,-500.0,0.00024931,2]
[336873981,1725223850802,-1902.23,0.00024931,2]
[336873982,1725223850813,-1804.34,0.00024931,2]
[336873983,1725223850824,-1766.03,0.00024931,2]
[336873984,1725223850834,-500.0,0.00024931,2]
[336873985,1725223850843,-828.02,0.00024931,2]
[336873986,1725223850853,-520.52677227,0.00024931,2]
[336873987,1725223850862,-534.74,0.00024931,2]
[336873988,1725223850872,-500.0,0.00024931,2]
[336873989,1725223850882,-500.0,0.00024931,2]
[336873990,1725223850893,-2655.44,0.00024931,2]
[336873991,1725223850902,-1138.98,0.00024931,2]
[336873992,1725223850914,-699.26,0.00024931,2]
[336873993,1725223850924,-500.0,0.00024931,2]
[336873994,1725223850934,-780.1,0.00024931,2]
[336873995,1725223850944,-1173.36,0.00024931,2]
[336873996,1725223850955,-501.36383161,0.00024931,2]
[336873997,1725223850965,-500.0,0.00024931,2]
[336873998,1725223850975,-500.0,0.00024931,2]
[336873999,1725223850987,-500.0,0.00024931,2]
[336874000,1725223850998,-500.0,0.00024931,2]
[336874001,1725223851008,-568.92,0.00024931,2]
[336874002,1725223851021,-735.61,0.00024931,2]
[336874003,1725223851032,-1348.36,0.00024931,2]
[336874004,1725223851042,-500.0,0.00024931,2]
[336874005,1725223851052,-760.32,0.00024931,2]
[336874006,1725223851061,-777.07,0.00024931,2]
[336874007,1725223851072,-771.88,0.00024931,2]
[336874008,1725223851086,-8163.45,0.00024931,2]
[336874009,1725223851095,-500.0,0.00024931,2]
[336874010,1725223851105,-6057.72,0.00024931,2]
[336874011,1725223851114,-500.0,0.00024931,2]
[336874012,1725223851125,-1347.97,0.00024931,2]
[336874013,1725223851134,-152.27377715,0.00024931,2]
[336874014,1725223851144,-1161.77,0.00024931,2]
[336874015,1725223851156,-500.0,0.00024931,2]
[336874016,1725223851166,-1624.73,0.00024931,2]
[336874017,1725223851175,-168.19705482,0.00024931,2]
[336874018,1725223851184,-1593.98,0.00024931,2]
[336874019,1725223851194,-500.0,0.00024931,2]
[336874020,1725223851203,-3271.16,0.00024931,2]
[336874021,1725223851213,-500.0,0.00024931,2]
[336874022,1725223851223,-1778.2,0.00024931,2]
[336874023,1725223851232,-1839.62,0.00024931,2]
[336874024,1725223851243,-500.0,0.00024931,2]
[336874025,1725223851254,-639.98416241,0.00024931,2]
[336874026,1725223851263,-500.0,0.00024931,2]
[336874027,1725223851274,-500.0,0.00024931,2]
[336874028,1725223851286,-500.0,0.00024931,2]
[336874029,1725223851296,-500.0,0.00024931,2]
[336874030,1725223851308,-500.0,0.00024931,2]
[336874031,1725223851319,-1500.55,0.00024931,2]
[336874032,1725223851328,-550.76,0.00024931,2]
[336874033,1725223851338,-623.65,0.00024931,2]
[336874034,1725223851348,-500.0,0.00024931,2]
[336874035,1725223851359,-500.0,0.00024931,2]
[336874036,1725223851369,-2093.63,0.00024931,2]
[336874037,1725223851379,-733.28,0.00024931,2]
[336874038,1725223851389,-500.0,0.00024931,2]
[336874039,1725223851398,-522.73356696,0.00024931,2]
[336874040,1725223851407,-2283.29,0.00024931,2]
[336874041,1725223851417,-500.0,0.00024931,2]
[336874042,1725223851426,-500.0,0.00024931,2]
[336874043,1725223851436,-500.0,0.00024931,2]
[336874044,1725223851445,-1450.66,0.00024931,2]
[336874045,1725223851454,-1204.89,0.00024931,2]
[336874046,1725223851464,-1579.86,0.00024931,2]
[336874047,1725223851474,-500.0,0.00024931,2]
[336874048,1725223851485,-500.0,0.00024931,2]
[336874049,1725223851496,-1439.73,0.00024931,2]
[336874050,1725223851508,-500.0,0.00024973,2]
[336874051,1725223851520,-169.79,0.00024999,2]
[336874052,1725223851531,-171.0,0.00025,2]
[336874053,1725223851542,-150.112233,0.00025,7]
[336874054,1725223851554,-150.112233,0.000251,5]
[336874055,1725223851563,-150.112233,0.000251,6]
[336874056,1725223851573,-500.0,0.00025103,2]
[336874057,1725223851582,-153.02792783,0.00025105,7]
[336874058,1725223851591,-153.52,0.00025105,7]
[336874059,1725223851601,-153.21542783,0.00025105,7]
[336874060,1725223851610,-153.21542783,0.00025105,7]
[336874061,1725223851620,-153.21542783,0.00025105,7]
[336874062,1725223851629,-153.21542783,0.00025105,7]
[336874063,1725223851638,-153.21542783,0.00025105,7]
[336874064,1725223851647,-153.21542783,0.00025105,7]
[336874065,1725223851657,-153.21542783,0.00025105,7]
[336874066,1725223851668,-153.99529182,0.00025105,7]
[336874067,1725223851679,-154.49,0.00025105,7]
[336874068,1725223851688,-154.18279182,0.00025105,7]
[336874069,1725223851699,-154.18279182,0.00025105,7]
[336874070,1725223851711,-154.18279182,0.00025105,7]
[336874071,1725223851723,-154.18279182,0.00025105,7]
[336874072,1725223851732,-154.18279182,0.00025105,7]
[336874073,1725223851742,-154.18279182,0.00025105,7]
[336874074,1725223851752,-154.18279182,0.00025105,7]
[336874075,1725223851762,-153.0,0.0002518,2]
[336874076,1725223851777,-354.34230375,0.00025195,3]
[336874077,1725223851789,-708.6846075,0.00025195,3]
[336874078,1725223851798,-3078.17,0.00025199,2]
[336874079,1725223851808,-3078.17,0.00025199,2]
[336874080,1725223851817,-3078.17,0.00025199,2]
[336874081,1725223851826,-3078.17,0.00025199,2]
[336874082,1725223851835,-3078.35748006,0.00025199,2]
[336874083,1725223851844,-151.0,0.00025199,7]
[336874084,1725223851854,-150.112233,0.000252,7]
[336874085,1725223851863,-3000.0,0.000252,2]
[336874086,1725223851873,-150.112233,0.000252,6]
[336874087,1725223851883,-475.2,0.00025204,2]
[336874088,1725223851892,-8764.01219034,0.00025205,11]
[336874089,1725223851901,-500.0,0.00025205,2]
[336874090,1725223851910,-500.0,0.00025205,2]
[336874091,1725223851920,-504.98489087,0.00025205,2]
[336874092,1725223851929,-500.0,0.00025205,2]
[336874093,1725223851939,-500.0,0.00025205,2]
[336874094,1725223851949,-500.0,0.00025205,2]
[336874095,1725223851959,-500.0,0.00025205,2]
[336874096,1725223851968,-500.0,0.00025205,2]
[336874097,1725223851977,-500.0,0.00025205,2]
[336874098,1725223851988,-500.0,0.00025205,2]
[336874099,1725223851999,-570.83,0.00025205,2]
[336874100,1725223852010,-500.0,0.00025205,2]
[336874101,1725223852024,-500.0,0.00025205,2]
[336874102,1725223852035,-500.0,0.00025205,2]
[336874103,1725223852045,-500.0,0.00025205,2]
[336874104,1725223852055,-500.0,0.00025205,2]
[336874105,1725223852065,-1286.28,0.00025205,2]
[336874106,1725223852076,-500.0,0.00025205,2]
[336874107,1725223852087,-500.0,0.00025205,2]
[336874108,1725223852096,-500.0,0.00025205,2]
[336874109,1725223852106,-973.54,0.00025205,2]
[336874110,1725223852115,-500.0,0.00025205,2]
[336874111,1725223852126,-500.0,0.00025205,2]
[336874112,1725223852136,-500.0,0.00025205,2]
[336874113,1725223852146,-500.0,0.00025205,2]
[336874114,1725223852156,-500.0,0.00025205,2]
[336874115,1725223852167,-500.0,0.00025205,2]
[336874116,1725223852296,-500.0,0.00025205,2]
[336874117,1725223852306,-500.0,0.00025205,2]
[336874118,1725223852316,-500.0,0.00025205,2]
[336874119,1725223852325,-508.30466131,0.00025205,2]
[336874120,1725223852335,-654.56,0.00025205,2]
[336874121,1725223852345,-500.0,0.00025205,2]
[336874122,1725223852354,-500.0,0.00025205,2]
[336874123,1725223852364,-500.0,0.00025205,2]
[336874124,1725223852373,-500.0,0.00025205,2]
[336874125,1725223852383,-491.21938583,0.00025205,2]
[336874126,1725223852393,-500.0,0.00025205,2]
[336874127,1725223852402,-500.0,0.00025205,2]
[336874128,1725223852411,-703.27,0.00025205,2]
[336874129,1725223852421,-500.0,0.00025205,2]
[336874130,1725223852431,-357.55163027,0.00025205,2]
[336874131,1725223852443,-420.58768688,0.00025205,2]
[336874132,1725223852452,-500.0,0.00025205,2]
[336874133,1725223852463,-602.44,0.00025205,2]
[336874134,1725223852472,-500.0,0.00025205,2]
[336874135,1725223852482,-500.0,0.00025205,2]
[336874136,1725223852491,-540.61,0.00025205,2]
[336874137,1725223852501,-696.6,0.00025205,2]
[336874138,1725223852511,-500.0,0.00025205,2]
[336874139,1725223852522,-586.57,0.00025205,2]
[336874140,1725223852531,-500.0,0.00025205,2]
[336874141,1725223852539,-500.0,0.00025205,2]
[336874142,1725223852552,-500.0,0.00025205,2]
[336874143,1725223852563,-500.0,0.00025205,2]
[336874144,1725223852573,-500.0,0.00025205,2]
[336874145,1725223852583,-1093.07,0.00025205,2]
[336874146,1725223852593,-500.0,0.00025205,2]
[336874147,1725223852603,-500.0,0.00025205,2]
[336874148,1725223852612,-500.0,0.00025205,2]
[336874149,1725223852622,-543.64,0.00025205,2]
[336874150,1725223852632,-500.0,0.00025205,2]
[336874151,1725223852642,-500.0,0.00025205,2]
[336874152,1725223852652,-500.0,0.00025205,2]
[336874153,1725223852664,-500.0,0.00025205,2]
[336874154,1725223852674,-500.0,0.00025205,2]
[336874155,1725223852686,-500.0,0.00025205,2]
[336874156,1725223852696,-503.24694525,0.00025205,2]
[336874157,1725223852707,-500.0,0.00025205,2]
[336874158,1725223852719,-500.0,0.00025205,2]
[336874159,1725223852728,-744.91,0.00025205,2]
[336874160,1725223852738,-500.0,0.00025205,2]
[336874161,1725223852748,-500.0,0.00025205,2]
[336874162,1725223852757,-500.0,0.00025205,2]
[336874163,1725223852768,-500.0,0.00025205,2]
[336874164,1725223852778,-500.0,0.00025205,2]
[336874165,1725223852788,-1106.97,0.00025205,2]
[336874166,1725223852798,-893.92,0.00025205,2]
[336874167,1725223852806,-500.0,0.00025205,2]
[336874168,1725223852816,-500.0,0.00025205,2]
[336874169,1725223852825,-500.0,0.00025205,2]
[336874170,1725223852835,-709.76,0.00025205,2]
[336874171,1725223852846,-500.0,0.00025205,2]
[336874172,1725223852855,-503.75109237,0.00025205,2]
[336874173,1725223852864,-500.0,0.00025205,2]
[336874174,1725223852873,-532.54,0.00025205,2]
[336874175,1725223852883,-500.0,0.00025205,2]
[336874176,1725223852892,-527.94596193,0.00025205,2]
[336874177,1725223852901,-500.0,0.00025205,2]
[336874178,1725223852911,-500.0,0.00025205,2]
[336874179,1725223852920,-500.0,0.00025205,2]
[336874180,1725223852930,-652.74,0.00025205,2]
[336874181,1725223852940,-500.0,0.00025205,2]
[336874182,1725223852950,-500.0,0.00025205,2]
[336874183,1725223852959,-500.0,0.00025205,2]
[336874184,1725223852968,-500.0,0.00025205,2]
[336874185,1725223852977,-862.47,0.00025205,2]
[336874186,1725223852987,-510.21098087,0.00025205,2]
[336874187,1725223852996,-500.0,0.00025205,2]
[336874188,1725223853006,-500.0,0.00025205,2]
[336874189,1725223853016,-500.0,0.00025205,2]
[336874190,1725223853026,-500.0,0.00025205,2]
[336874191,1725223853036,-500.0,0.00025205,2]
[336874192,1725223853046,-500.0,0.00025205,2]
[336874193,1725223853056,-500.0,0.00025205,2]
[336874194,1725223853066,-4033.47,0.00025205,2]
[336874195,1725223853080,-500.0,0.00025205,2]
[336874196,1725223853089,-500.0,0.00025205,2]
[336874197,1725223853099,-500.0,0.00025205,2]
[336874198,1725223853109,-151.0,0.00025205,7]
[336874199,1725223853118,-1389.83,0.00025205,2]
[336874200,1725223853128,-500.0,0.00025205,2]
[336874201,1725223853137,-500.0,0.00025205,2]
[336874202,1725223853146,-500.0,0.00025205,2]
[336874203,1725223853158,-509.7008296,0.00025205,2]
[336874204,1725223853168,-619.73,0.00025205,2]
[336874205,1725223853178,-500.0,0.00025205,2]
[336874206,1725223853188,-500.0,0.00025205,2]
[336874207,1725223853198,-500.0,0.00025205,2]
[336874208,1725223853207,-500.0,0.00025205,2]
[336874209,1725223853216,-500.0,0.00025205,2]
[336874210,1725223853225,-500.0,0.00025205,2]
[336874211,1725223853235,-500.0,0.00025205,2]
[336874212,1725223853244,-663.51,0.00025205,2]
[336874213,1725223853254,-500.0,0.00025205,2]
[336874214,1725223853264,-500.0,0.00025205,2]
[336874215,1725223853273,-449.61626795,0.00025205,2]
[336874216,1725223853284,-602.92,0.00025205,2]
[336874217,1725223853294,-500.0,0.00025205,2]
[336874218,1725223853304,-500.0,0.00025205,2]
[336874219,1725223853315,-500.0,0.00025205,2]
[336874220,1725223853324,-500.0,0.00025205,2]
[336874221,1725223853335,-500.0,0.00025205,2]
[336874222,1725223853347,-500.0,0.00025205,2]
[336874223,1725223853357,-500.0,0.00025205,2]
[336874224,1725223853367,-500.0,0.00025205,2]
[336874225,1725223853377,-500.0,0.00025205,2]
[336874226,1725223853386,-791.66,0.00025205,2]
[336874227,1725223853396,-500.0,0.00025205,2]
[336874228,1725223853406,-525.37,0.00025205,2]
[336874229,1725223853415,-500.0,0.00025205,2]
[336874230,1725223853426,-771.3,0.00025205,2]
[336874231,1725223853435,-641.31,0.00025205,2]
[336874232,1725223853445,-500.0,0.00025205,2]
[336874233,1725223853455,-500.0,0.00025205,2]
[336874234,1725223853464,-638.19648141,0.00025205,2]
[336874235,1725223853474,-1173.16,0.00025205,2]
[336874236,1725223853485,-288.97975478,0.00025205,2]
[336874237,1725223853495,-500.0,0.00025205,2]
[336874238,1725223853505,-500.0,0.00025205,2]
[336874239,1725223853515,-949.64,0.00025205,2]
[336874240,1725223853525,-500.0,0.00025205,2]
[336874241,1725223853534,-500.0,0.00025205,2]
[336874242,1725223853543,-500.0,0.00025205,2]
[336874243,1725223853553,-822.41,0.00025205,2]
[336874244,1725223853564,-500.0,0.00025205,2]
[336874245,1725223853573,-500.0,0.00025205,2]
[336874246,1725223853581,-577.79,0.00025205,2]
[336874247,1725223853591,-500.0,0.00025205,2]
[336874248,1725223853600,-500.0,0.00025205,2]
[336874249,1725223853610,-501.64022452,0.00025205,2]
[336874250,1725223853618,-500.0,0.00025205,2]
[336874251,1725223853628,-1704.72,0.00025205,2]
[336874252,1725223853637,-500.0,0.00025205,2]
[336874253,1725223853648,-500.0,0.00025205,2]
[336874254,1725223853659,-896.69,0.00025205,2]
[336874255,1725223853668,-630.32934669,0.00025205,2]
[336874256,1725223853679,-500.0,0.00025205,2]
[336874257,1725223853689,-500.0,0.00025205,2]
[336874258,1725223853702,-2243.11,0.00025205,2]
[336874259,1725223853713,-500.0,0.00025205,2]
[336874260,1725223853725,-500.0,0.00025205,2]
[336874261,1725223853737,-500.0,0.00025205,2]
[336874262,1725223853747,-500.0,0.00025205,2]
[336874263,1725223853757,-511.68,0.00025205,2]
[336874264,1725223853768,-500.0,0.00025205,2]
[336874265,1725223853778,-500.0,0.00025205,2]
[336874266,1725223853787,-500.0,0.00025205,2]
[336874267,1725223853797,-500.0,0.00025205,2]
[336874268,1725223853807,-1765.6,0.00025205,2]
[336874269,1725223853819,-500.0,0.00025205,2]
[336874270,1725223853829,-500.0,0.00025205,2]
[336874271,1725223853840,-500.0,0.00025205,2]
[336874272,1725223853850,-500.0,0.00025205,2]
[336874273,1725223853860,-2409.79,0.00025205,2]
[336874274,1725223853870,-569.85,0.00025205,2]
[336874275,1725223853880,-500.0,0.00025205,2]
[336874276,1725223853889,-500.0,0.00025205,2]
[336874277,1725223853899,-1111.63,0.00025205,2]
[336874278,1725223853908,-500.0,0.00025205,2]
[336874279,1725223853917,-1571.19,0.00025205,2]
[336874280,1725223853926,-2169.5,0.00025205,2]
[336874281,1725223853938,-673.2,0.00025205,2]
[336874282,1725223853948,-565.48646795,0.00025205,2]
[336874283,1725223853959,-966.39,0.00025205,2]
[336874284,1725223853968,-502.33822911,0.00025205,2]
[336874285,1725223853978,-500.0,0.00025205,2]
[336874286,1725223853987,-740.13,0.00025205,2]
[336874287,1725223853996,-500.0,0.00025205,2]
[336874288,1725223854006,-500.0,0.00025205,2]
[336874289,1725223854015,-500.0,0.00025205,2]
[336874290,1725223854026,-500.0,0.00025205,2]
[336874291,1725223854035,-500.0,0.00025205,2]
[336874292,1725223854045,-859.36,0.00025205,2]
[336874293,1725223854055,-500.0,0.00025205,2]
[336874294,1725223854065,-535.46,0.00025205,2]
[336874295,1725223854075,-1897.75,0.00025205,2]
[336874296,1725223854086,-1450.88,0.00025205,2]
[336874297,1725223854095,-1045.48,0.00025205,2]
[336874298,1725223854104,-1367.18,0.00025205,2]
[336874299,1725223854115,-500.0,0.00025205,2]
[336874300,1725223854125,-2148.37,0.00025205,2]
[336874301,1725223854134,-228.912194,0.00025205,7]
[336874302,1725223854144,-500.0,0.00025205,2]
[336874303,1725223854157,-502.53,0.00025205,2]
[336874304,1725223854166,-228.912194,0.00025205,7]
[336874305,1725223854176,-500.0,0.00025205,2]
[336874306,1725223854185,-500.0,0.00025205,2]
[336874307,1725223854194,-500.0,0.00025205,2]
[336874308,1725223854204,-500.0,0.00025205,2]
[336874309,1725223854214,-585.56,0.00025205,2]